bitfinex/quotes_ETHUSD_20240820
["timestamp","ask_amount","ask_price","bid_price","bid_amount"]
[1724116038023,3.0,2670.4,2669.8,2.4001]
[1724116038220,3.74407,2670.9,2669.8,2.4001]
[1724116038506,3.0,2670.8,2669.8,2.4001]
[1724116038729,3.0,2671.0,2669.8,2.4001]
[1724116038908,1.0862134,2670.9,2669.9,0.55]
[1724116039212,1.0862134,2670.9,2670.0,0.07104131]
[1724116039412,7.78023,2671.5,2670.1,0.55]
[1724116039618,3.74353,2671.3,2670.1,0.55]
[1724116039817,3.74364,2671.2,2670.2,0.07093728]
[1724116040019,3.74364,2671.2,2670.3,0.55]
[1724116040535,3.0,2671.1,2670.3,0.55]
[1724116040736,0.3,2671.0,2669.8,2.4001]
[1724116040901,0.3,2671.0,2669.9,0.55]
[1724116041095,3.3,2671.0,2669.9,0.62155877]
[1724116041854,3.74406,2670.9,2669.9,0.62155877]
[1724116042057,3.0,2670.8,2669.9,0.62155877]
[1724116042355,0.674406,2670.7,2669.9,0.07155877]
[1724116042563,4.418856,2670.7,2669.9,0.07155877]
[1724116042853,6.74448,2670.6,2669.8,2.4001]
[1724116043021,3.0,2670.6,2669.8,2.4001]
[1724116043222,0.7418836,2670.5,2669.8,2.4001]
[1724116043423,4.4865036,2670.5,2669.8,2.4001]
[1724116043668,3.0,2670.4,2669.8,2.4001]
[1724116043814,0.7418836,2670.5,2669.8,2.4001]
[1724116044385,3.0,2670.6,2669.8,2.4001]
[1724116044607,0.674406,2670.7,2669.9,0.07166523]
[1724116044893,3.74448,2670.6,2669.9,0.07166523]
[1724116045105,3.74448,2670.6,2669.5,2.2882]
[1724116045106,3.0,2670.5,2669.5,2.2882]
[1724116045248,0.674448,2670.4,2669.6,0.55]
[1724116045587,4.418766,2670.7,2669.6,0.62183462]
[1724116045886,3.0,2670.6,2669.6,0.62183462]
[1724116046186,4.418766,2670.7,2669.6,0.62183462]
[1724116046386,3.7418766,2670.6,2669.6,0.91283808]
[1724116046687,3.7447,2670.5,2669.6,0.62183462]
[1724116046892,6.74478,2670.4,2669.6,0.62183462]
[1724116047061,3.7449,2670.3,2669.6,0.62183462]
[1724116047248,3.0,2670.2,2669.6,0.62183462]
[1724116047448,0.67449,2670.1,2669.6,0.62183462]
[1724116048018,0.67449,2670.1,2669.6,0.07183462]
[1724116048165,3.74554,2669.9,2669.6,0.07183462]
[1724116048480,3.0,2669.8,2669.0,9.7859763]
[1724116048677,3.0,2669.8,2669.7,0.07179146]
[1724116048891,3.0,2670.1,2669.5,2.276]
[1724116049092,3.74481,2670.4,2669.7,0.07179146]
[1724116049093,0.3,2670.0,2669.7,0.07179146]
[1724116049289,6.74498,2670.3,2669.5,2.276]
[1724116049290,6.74493,2670.3,2669.5,2.276]
[1724116049466,3.0,2670.3,2669.5,2.276]
[1724116049673,6.74461,2670.5,2669.5,2.276]
[1724116049968,6.74461,2670.5,2669.6,0.55]
[1724116050573,6.74464,2670.5,2669.6,0.55]
[1724116050872,4.49352166,2670.4,2669.7,0.07193344]
[1724116051073,3.0,2670.3,2669.7,0.07193344]
[1724116051275,3.74865166,2670.4,2669.6,0.55]
[1724116051490,7.49349166,2670.4,2669.6,0.55]
[1724116051744,3.7449,2670.3,2669.7,0.07193344]
[1724116051894,3.74935517,2670.2,2669.6,0.55]
[1724116052093,3.74935517,2670.2,2669.5,2.276]
[1724116052270,9.26985517,2670.2,2669.1,2.4172]
[1724116052473,3.74563,2669.8,2669.1,2.4172]
[1724116052695,3.03,2669.9,2669.1,2.4172]
[1724116052867,3.0,2669.8,2669.1,2.4172]
[1724116053407,6.7456,2669.8,2669.1,2.4172]
[1724116053766,3.0,2669.8,2669.1,2.4172]
[1724116054017,0.977549,2669.7,2669.1,2.4172]
[1724116054610,3.74597,2669.6,2669.0,0.1299763]
[1724116054804,3.0,2669.5,2669.0,0.1299763]
[1724116055312,9.15022,2669.5,2669.0,0.1299763]
[1724116055518,1.218022,2669.4,2669.0,0.1299763]
[1724116055819,8.710432,2669.4,2669.0,0.1299763]
[1724116055973,3.74647,2669.2,2669.0,0.1299763]
[1724116056312,3.0,2669.3,2669.0,0.1299763]
[1724116056812,3.74655,2669.2,2669.0,0.1299763]
[1724116057114,3.674655,2669.1,2669.0,0.1299763]
[1724116057318,6.74632,2669.3,2669.0,0.1299763]
[1724116057493,3.74645,2669.2,2669.0,0.1299763]
[1724116057694,3.0,2669.1,2669.0,0.1299763]
[1724116058822,3.0,2669.4,2669.0,0.1299763]
[1724116059118,6.74619,2669.4,2669.0,0.1299763]
[1724116059420,0.674619,2669.3,2669.0,0.1299763]
[1724116059588,3.74593,2669.6,2669.0,0.1299763]
[1724116059589,3.0,2669.5,2669.0,0.1299763]
[1724116060090,3.74616,2669.4,2669.0,0.1299763]
[1724116060309,3.0,2669.3,2669.0,0.1299763]
[1724116060624,3.0,2669.5,2669.0,0.1299763]
[1724116060825,6.74612,2669.5,2669.0,0.1299763]
[1724116060981,1.049207,2669.4,2669.0,0.1299763]
[1724116062003,0.977549,2669.7,2669.1,2.4028]
[1724116062204,1.30148152,2670.1,2669.2,0.07242876]
[1724116062402,1.30148152,2670.1,2669.3,0.55]
[1724116062606,5.99655,2670.2,2669.4,0.07337675]
[1724116062789,5.99655,2670.2,2669.3,0.55]
[1724116063108,5.99655,2670.2,2669.2,0.55]
[1724116063279,9.74168,2670.2,2669.2,0.55]
[1724116063628,9.74168,2670.2,2669.0,0.1299763]
[1724116063629,2.2515,2670.2,2669.3,0.07342436]
[1724116063934,3.74568,2669.8,2669.3,0.07342436]
[1724116064146,3.74568,2669.8,2669.0,0.1299763]
[1724116064285,3.0,2669.7,2669.0,0.1299763]
[1724116064485,6.74576,2669.7,2669.0,0.1299763]
[1724116064791,3.74589,2669.6,2669.0,0.1299763]
[1724116065017,4.049165,2669.5,2669.0,0.1299763]
[1724116065227,3.74616,2669.4,2669.0,0.1299763]
[1724116065383,3.0,2669.3,2669.0,0.1299763]
[1724116065583,7.795245,2669.5,2669.0,0.1299763]
[1724116065784,4.049165,2669.5,2669.0,0.1299763]
[1724116066012,1.049165,2669.5,2669.0,0.1299763]
[1724116066227,4.795185,2669.5,2669.0,0.1299763]
[1724116066445,3.7795185,2669.4,2669.0,0.1299763]
[1724116066599,3.0,2669.4,2669.0,2.4423763]
[1724116066805,3.0,2669.6,2669.0,2.4423763]
[1724116067034,6.74589,2669.6,2669.0,2.4423763]
[1724116067185,4.049168,2669.6,2669.0,2.4423763]
[1724116068015,4.049168,2669.6,2669.0,0.1299763]
[1724116068216,3.74609,2669.5,2669.0,0.1299763]
[1724116068431,3.0,2669.4,2669.0,0.1299763]
[1724116069141,1.049168,2669.6,2669.0,0.1299763]
[1724116069303,6.74574,2669.7,2669.0,0.1299763]
[1724116069817,3.74589,2669.6,2669.0,0.1299763]
[1724116070014,3.0,2669.5,2669.0,0.1299763]
[1724116070225,3.0,2669.6,2669.0,0.1299763]
[1724116071227,3.0,2669.7,2669.0,0.1299763]
[1724116071424,6.74562,2669.8,2669.1,0.55]
[1724116071847,3.0,2669.8,2669.1,0.55]
[1724116072049,7.8112584,2669.9,2669.1,0.55]
[1724116072243,3.7456,2669.8,2669.1,0.55]
[1724116072462,3.78113984,2669.7,2669.1,0.55]
[1724116072673,0.78113984,2669.7,2669.1,0.55]
[1724116073451,7.52693984,2669.7,2669.1,0.55]
[1724116073952,3.74589,2669.6,2669.0,0.1299763]
[1724116074284,6.74609,2669.5,2669.0,0.1299763]
[1724116074460,1.049198,2669.4,2669.0,0.1299763]
[1724116074615,4.795378,2669.4,2669.0,0.1299763]
[1724116074815,3.0,2669.3,2669.0,0.1299763]
[1724116075059,6.03278,2669.1,2669.0,0.1299763]
[1724116075351,3.74766,2668.4,2667.4,2.3481]
[1724116075553,0.374766,2668.3,2667.4,2.3481]
[1724116075713,3.374766,2668.3,2667.5,0.07177124]
[1724116076110,3.0,2668.3,2667.5,0.07177124]
[1724116076382,2.2862,2669.1,2667.5,0.07177124]
[1724116076383,3.74743,2668.5,2667.5,0.07177124]
[1724116076522,3.0,2668.4,2667.5,0.07177124]
[1724116077229,3.0,2668.5,2667.5,0.07177124]
[1724116077676,2.3273,2668.4,2667.5,0.07177124]
[1724116077950,0.53273,2668.3,2667.5,0.07177124]
[1724116078158,2.3273,2668.4,2666.9,2.2997]
[1724116078370,2.3273,2668.4,2667.6,0.07215358]
[1724116078371,3.74854,2667.7,2667.6,0.07215358]
[1724116078550,6.74854,2667.7,2666.9,2.2997]
[1724116078739,3.0,2667.6,2666.9,2.2997]
[1724116078937,3.74891,2667.5,2666.9,2.2997]
[1724116079270,6.74902,2667.4,2666.9,2.2997]
[1724116079571,3.0,2667.4,2666.4,2.2997]
[1724116079864,3.0,2667.4,2666.5,0.07292212]
[1724116080169,3.74885,2667.5,2666.5,0.07292212]
[1724116080338,6.74875,2667.6,2666.5,0.07292212]
[1724116080339,6.74897,2667.4,2666.5,0.07292212]
[1724116080676,6.7492,2667.3,2666.5,0.07292212]
[1724116080872,6.74913,2667.3,2666.5,0.07292212]
[1724116081161,3.74931,2667.2,2666.5,0.07292212]
[1724116081563,3.0,2667.1,2666.5,0.07292212]
[1724116081749,3.0,2667.3,2666.5,0.07292212]
[1724116081928,0.4349772,2667.3,2666.5,0.07292212]
[1724116082354,3.0,2667.3,2666.5,0.07292212]
[1724116082936,3.74919,2667.3,2666.5,0.07292212]
[1724116083141,3.035,2667.7,2666.5,0.07292212]
[1724116083142,3.0,2667.2,2666.5,0.07292212]
[1724116083391,0.4041189,2668.5,2666.7,2.3791]
[1724116083392,3.0,2667.6,2666.7,2.3791]
[1724116083689,3.74805,2668.1,2666.8,0.62305858]
[1724116083690,3.74828,2667.9,2666.8,0.62305858]
[1724116083898,2.4083,2667.7,2666.8,0.07305858]
[1724116084062,3.74904,2667.4,2666.8,0.07305858]
[1724116084275,3.74904,2667.4,2666.3,0.1299763]
[1724116084276,3.0,2667.3,2666.3,0.1299763]
[1724116084651,6.74917,2667.3,2666.4,0.07323165]
[1724116084979,3.74967,2666.9,2666.4,0.07323165]
[1724116085384,3.0,2666.8,2666.4,0.07323165]
[1724116085674,0.674904,2667.2,2666.4,0.07323165]
[1724116086236,8.173624,2667.2,2666.4,0.07323165]
[1724116086437,7.8667724,2667.1,2666.4,0.07323165]
[1724116086783,3.0,2667.0,2666.4,0.07323165]
[1724116087645,1.1173624,2667.1,2666.4,0.07323165]
[1724116087646,4.1173624,2667.1,2666.4,0.07323165]
[1724116087846,1.1173624,2667.1,2666.4,0.07323165]
[1724116088447,3.674904,2667.2,2666.4,0.07323165]
[1724116088743,4.726818,2667.8,2666.6,2.4628]
[1724116089051,4.726818,2667.8,2666.7,0.62394441]
[1724116089052,4.726828,2667.8,2666.7,0.62394441]
[1724116089369,3.74869,2667.6,2666.7,0.62394441]
[1724116089869,4.726828,2667.8,2666.7,0.62394441]
[1724116090044,3.7029928,2667.7,2666.7,0.62394441]
[1724116090246,0.7029928,2667.7,2666.7,0.62394441]
[1724116090460,6.05107,2668.2,2666.7,3.65894441]
[1724116090785,6.05098,2668.2,2666.7,3.65894441]
[1724116090987,6.0503,2668.7,2667.1,2.2871]
[1724116091189,2.3031,2668.7,2667.5,2.2871]
[1724116091356,2.3031,2668.7,2667.6,0.55]
[1724116091557,0.23031,2668.6,2667.6,0.62348862]
[1724116092486,3.74742,2668.5,2667.6,0.07348862]
[1724116092780,3.74779,2668.3,2667.6,0.07348862]
[1724116092984,3.0,2668.2,2667.6,0.07348862]
[1724116093194,6.74772,2668.3,2667.6,0.07348862]
[1724116093396,0.674772,2668.2,2667.6,0.07348862]
[1724116093565,3.0,2668.4,2667.6,0.07348862]
[1724116093766,3.0,2668.4,2667.5,2.2871]
[1724116093992,3.74778,2668.3,2667.5,2.2871]
[1724116094179,3.74799,2668.1,2667.6,0.07310707]
[1724116094381,3.0,2668.0,2667.2,2.4544]
[1724116094583,0.3,2668.0,2667.3,0.62325009]
[1724116095160,3.74896,2667.4,2667.3,0.07325009]
[1724116095360,3.74917,2667.3,2666.3,2.5830763]
[1724116095602,3.74926,2667.2,2666.4,0.07084222]
[1724116095771,3.674926,2667.1,2666.4,0.07084222]
[1724116096098,3.674926,2667.1,2666.3,2.5830763]
[1724116096099,3.7499,2666.8,2666.3,0.1299763]
[1724116096283,7.49953,2666.9,2666.3,0.1299763]
[1724116096463,3.0,2666.8,2666.4,0.07084222]
[1724116096855,3.0,2666.8,2666.3,0.1299763]
[1724116097004,3.0,2666.9,2666.5,0.07079451]
[1724116097200,3.7424516,2666.9,2666.3,0.1299763]
[1724116097501,0.674926,2667.1,2666.4,0.07084222]
[1724116097502,3.674926,2667.1,2666.4,0.07084222]
[1724116097799,3.0,2667.1,2666.5,2.2638]
[1724116097964,3.0,2667.3,2666.6,0.07074681]
[1724116098303,0.6749,2667.2,2666.5,2.2638]
[1724116098800,3.0,2667.3,2666.6,0.62074681]
[1724116098964,3.0,2667.3,2666.6,0.55]
[1724116099462,3.0,2667.5,2666.7,0.0706991]
[1724116099674,6.13401,2667.7,2666.7,0.0706991]
[1724116099871,7.49921,2667.0,2666.7,0.0706991]
[1724116100094,3.749921,2666.9,2666.3,0.1299763]
[1724116100983,3.7493,2667.2,2666.4,2.326]
[1724116101293,3.0,2666.8,2666.4,2.326]
[1724116101494,3.0,2667.1,2666.4,2.326]
[1724116101879,3.0,2667.1,2666.5,0.55]
[1724116102218,3.74884,2667.5,2666.6,0.2876]
[1724116102424,3.0,2667.4,2666.7,0.55]
[1724116102913,3.0,2667.4,2666.5,0.55]
[1724116103125,3.74842,2667.8,2666.5,0.55]
[1724116103335,3.74855,2667.7,2666.5,0.55]
[1724116103681,7.49721,2667.7,2666.5,0.55]
[1724116103879,4.498441,2667.6,2666.6,0.2876]
[1724116104136,3.74883,2667.5,2666.7,0.55]
[1724116104280,3.0,2667.4,2666.7,0.55]
[1724116104637,6.74906,2667.4,2666.5,0.55]
[1724116104786,3.74915,2667.3,2666.5,0.55]
[1724116104981,3.74939,2667.1,2666.5,0.55]
[1724116105189,3.674939,2667.0,2666.5,0.55]
[1724116105451,3.674939,2667.0,2666.4,2.326]
[1724116105788,7.424469,2667.0,2666.4,2.326]
[1724116106789,3.674939,2667.0,2666.4,2.326]
[1724116107124,3.0,2666.9,2666.4,2.326]
[1724116107308,3.0,2667.1,2666.4,2.326]
[1724116108188,3.0,2667.1,2666.5,0.07116278]
[1724116109710,3.74958,2667.0,2666.5,0.07116278]
[1724116109908,3.674958,2666.9,2666.3,0.1299763]
[1724116110107,3.674958,2666.9,2666.6,0.07111507]
[1724116110320,3.674958,2666.9,2666.3,0.1299763]
[1724116110520,3.674958,2666.9,2666.7,0.07106737]
[1724116110705,3.674958,2666.9,2666.3,0.1299763]
[1724116110901,3.674958,2666.9,2666.8,0.07101967]
[1724116111194,3.674958,2666.9,2666.3,0.1299763]
[1724116111410,6.74919,2667.3,2666.4,0.07121049]
[1724116111646,3.74925,2667.2,2666.4,0.07121049]
[1724116111795,3.0,2667.1,2666.4,0.07121049]
[1724116112517,0.749721,2667.6,2666.5,2.4601]
[1724116112697,7.49672,2667.9,2666.6,0.55]
[1724116112698,6.23827,2667.7,2666.6,0.55]
[1724116113045,7.49719,2667.7,2666.6,0.62111507]
[1724116113249,3.74857,2667.7,2666.6,0.62111507]
[1724116113541,6.24002,2668.1,2666.6,0.62111507]
[1724116113542,3.74901,2667.4,2666.6,0.62111507]
[1724116113723,3.74912,2667.3,2666.6,0.62111507]
[1724116113938,4.748126,2667.3,2666.6,0.62111507]
[1724116114132,4.748126,2667.3,2666.6,0.07111507]
[1724116114299,0.999006,2667.3,2666.6,0.07111507]
[1724116114640,2.492,2667.5,2666.6,0.07111507]
[1724116114641,3.74967,2666.9,2666.6,0.07111507]
[1724116114845,3.0,2667.4,2666.3,0.1299763]
[1724116114846,3.0,2666.8,2666.3,0.1299763]
[1724116115148,3.7492,2667.3,2666.4,0.07121049]
[1724116115297,6.74925,2667.2,2666.4,0.07121049]
[1724116115497,6.7491,2667.4,2666.4,0.07121049]
[1724116115498,3.0,2667.1,2666.4,0.07121049]
[1724116115733,6.74906,2667.4,2666.4,0.07121049]
[1724116116027,6.74906,2667.4,2666.5,0.55]
[1724116116194,10.49812,2667.4,2666.6,0.07157205]
[1724116116397,3.74912,2667.3,2666.6,0.07157205]
[1724116116600,4.049818,2667.2,2666.6,0.07157205]
[1724116117311,3.0,2667.3,2666.6,0.07157205]
[1724116117941,0.3,2668.0,2666.7,3.0201]
[1724116118253,6.19305,2668.2,2666.8,0.45559849]
[1724116118543,6.19305,2668.2,2667.0,2.4701]
[1724116118743,9.94099,2668.2,2667.0,2.4701]
[1724116118951,2.4451,2668.2,2667.1,0.62129806]
[1724116119252,2.4451,2668.6,2667.3,2.4701]
[1724116119538,3.74787,2668.2,2667.4,0.62102632]
[1724116120107,7.49562,2668.3,2667.4,0.62102632]
[1724116120308,4.497422,2668.2,2667.4,0.62102632]
[1724116120521,3.0,2668.1,2667.4,0.62102632]
[1724116120915,3.0,2668.1,2667.4,0.55]
[1724116121702,3.749562,2668.2,2667.4,0.55]
[1724116121918,3.0,2668.4,2667.4,0.55]
[1724116122440,5.4451,2668.6,2667.5,0.07071691]
[1724116122736,3.74769,2668.4,2667.5,0.07071691]
[1724116122941,3.74772,2668.3,2667.5,0.07071691]
[1724116123142,6.74797,2668.2,2667.3,2.4701]
[1724116123354,3.0,2668.2,2667.6,0.07066924]
[1724116123651,3.74854,2667.7,2666.9,2.2895]
[1724116123939,3.74837,2667.9,2667.0,0.07094645]
[1724116123940,3.0,2667.6,2667.0,0.07094645]
[1724116124126,6.74843,2667.8,2667.0,0.07094645]
[1724116124304,1.04968,2667.7,2667.0,0.07094645]
[1724116124509,4.79822,2667.7,2667.0,0.07094645]
[1724116124710,3.0,2667.6,2667.0,0.07094645]
[1724116125239,1.04968,2667.7,2667.0,0.07094645]
[1724116126530,10.49704,2667.8,2667.0,0.07094645]
[1724116127042,3.74869,2667.6,2667.0,0.07094645]
[1724116127271,3.74869,2667.6,2666.6,2.2747]
[1724116127272,3.0,2667.5,2666.6,2.2747]
[1724116127844,3.0,2667.7,2666.7,0.07095192]
[1724116128647,3.0,2667.7,2666.8,0.55]
[1724116128848,3.0,2667.7,2666.9,2.42629646]
[1724116129011,3.0,2668.0,2667.0,0.84762965]
[1724116129205,3.0,2668.0,2667.1,0.07077002]
[1724116129405,0.674778,2668.1,2667.1,0.07077002]
[1724116129406,3.674778,2668.1,2667.1,0.07077002]
[1724116129611,3.674778,2668.1,2667.2,0.55]
[1724116129821,3.674778,2668.1,2667.3,2.48057465]
[1724116129822,0.674778,2668.1,2667.3,2.48057465]
[1724116130033,3.74735,2668.6,2667.4,0.55]
[1724116130234,3.74735,2668.6,2667.5,0.07049058]
[1724116130443,7.49475,2668.6,2667.5,0.07049058]
[1724116130647,3.74735,2668.6,2667.5,0.07049058]
[1724116131354,2.3055,2668.7,2667.7,2.2662]
[1724116131655,3.0,2668.6,2667.8,0.0702633]
[1724116131858,6.05265,2668.7,2667.7,2.2662]
[1724116131859,2.3055,2668.7,2667.7,2.2662]
[1724116132029,6.18947,2669.1,2667.8,0.9018833]
[1724116132238,3.034,2669.3,2667.9,2.2662]
[1724116132239,2.4428,2669.3,2667.9,2.2662]
[1724116132418,2.4428,2669.3,2668.0,0.62005268]
[1724116132419,3.74667,2669.1,2668.0,0.62005268]
[1724116132623,0.374667,2669.0,2668.0,0.62005268]
[1724116133331,3.374667,2669.0,2668.0,0.62005268]
[1724116133764,7.121387,2669.0,2668.0,0.62005268]
[1724116134330,3.374667,2669.0,2668.0,0.62005268]
[1724116134544,3.0,2668.9,2668.0,0.62005268]
[1724116134747,3.0,2668.9,2668.0,0.90867795]
[1724116135066,3.374667,2669.0,2668.0,0.90867795]
[1724116135578,3.0,2668.9,2668.0,0.90867795]
[1724116135867,2.4428,2669.3,2668.0,0.90867795]
[1724116135868,3.74595,2669.6,2668.1,2.3323]
[1724116136070,3.74595,2669.6,2668.3,2.3323]
[1724116136276,3.74595,2669.6,2668.4,0.06958723]
[1724116136568,7.49191,2669.6,2668.4,0.61958723]
[1724116136773,0.749191,2669.5,2668.4,0.91477595]
[1724116136937,4.495231,2669.5,2668.4,0.91477595]
[1724116137131,0.749191,2669.5,2668.5,2.4014]
[1724116137433,3.74595,2669.6,2668.6,0.61886678]
[1724116137656,6.19557,2669.8,2668.6,0.61886678]
[1724116137843,3.74537,2670.0,2668.7,2.4269]
[1724116138046,3.74521,2670.1,2668.9,2.4238]
[1724116138251,0.749026,2670.0,2669.0,0.06867185]
[1724116138441,3.74505,2670.2,2669.1,0.55]
[1724116138638,3.74505,2670.2,2669.2,0.06852787]
[1724116139274,3.74493,2670.3,2669.3,2.9075]
[1724116139660,6.01754,2670.5,2669.3,2.9075]
[1724116139849,4.76824491,2670.4,2669.3,2.9075]
[1724116140054,8.51311491,2670.4,2669.3,2.9075]
[1724116140275,8.51311491,2670.4,2669.4,0.06827758]
[1724116140434,4.76824491,2670.4,2669.5,0.55]
[1724116140635,3.0,2670.3,2669.3,2.9075]
[1724116140975,0.77682449,2670.2,2669.3,2.9075]
[1724116141550,0.77682449,2670.2,2669.4,0.06802513]
[1724116141749,0.77682449,2670.2,2669.5,0.55]
[1724116142050,0.77682449,2670.2,2669.3,2.9075]
[1724116142640,4.52186449,2670.2,2669.3,2.9075]
[1724116142842,3.75218645,2670.1,2669.3,2.9075]
[1724116144277,3.74546,2669.9,2669.3,2.9075]
[1724116144478,3.74546,2669.9,2669.3,2.3575]
[1724116144984,3.74546,2669.9,2669.0,2.4465]
[1724116145275,3.74546,2669.9,2669.1,0.61819896]
[1724116145499,0.749088,2669.8,2669.1,0.61819896]
[1724116145660,7.49749645,2670.1,2669.1,0.61819896]
[1724116146790,3.74546,2669.9,2669.1,0.61819896]
[1724116146973,3.74578,2669.7,2669.1,0.06819896]
[1724116147149,6.74568,2669.8,2669.1,0.06819896]
[1724116147643,6.74568,2669.8,2669.2,0.06822663]
[1724116147848,6.74568,2669.8,2669.0,2.4465]
[1724116148088,6.74568,2669.8,2669.1,0.06827424]
[1724116148387,0.74954337,2669.7,2669.1,0.06827424]
[1724116148583,4.49528337,2669.7,2669.1,0.06827424]
[1724116148783,3.0,2669.6,2669.0,2.4465]
[1724116149171,7.49530337,2669.7,2669.0,2.4465]
[1724116149411,7.49530337,2669.7,2669.1,0.06827424]
[1724116149573,0.74953034,2669.6,2669.0,2.4465]
[1724116149776,0.74953034,2669.6,2669.2,0.06822663]
[1724116150098,7.49194,2669.6,2668.7,2.3033]
[1724116150401,3.0,2669.5,2669.3,0.06817902]
[1724116150603,3.0,2669.5,2668.7,2.3033]
[1724116150955,3.74648,2669.2,2668.8,0.06826198]
[1724116151164,3.0,2669.5,2668.8,0.06826198]
[1724116151165,3.0,2669.1,2668.9,2.3033]
[1724116151365,3.0,2669.5,2668.9,2.3033]
[1724116151588,0.674597,2669.4,2669.0,0.06822876]
[1724116151901,0.674597,2669.4,2668.9,2.3033]
[1724116152062,3.0,2669.6,2668.9,2.3033]
[1724116152266,3.0,2669.7,2668.9,2.3033]
[1724116152662,6.74575,2669.7,2668.9,2.3033]
[1724116152890,3.0,2669.7,2669.0,0.55]
[1724116153053,3.0,2669.7,2669.1,0.06822988]
[1724116153260,0.3,2669.6,2669.2,0.55]
[1724116153458,3.0,2669.8,2669.2,0.55]
[1724116153688,3.0,2669.8,2668.9,2.3033]
[1724116153689,0.74975365,2669.9,2669.0,0.55]
[1724116153964,3.74509,2670.2,2669.1,0.06815456]
[1724116154303,3.74581,2669.7,2669.1,0.06815456]
[1724116154459,3.74575,2669.7,2669.1,0.06815456]
[1724116154660,3.74575,2669.7,2668.9,2.3033]
[1724116154888,3.74596,2669.6,2669.0,0.06814459]
[1724116155070,0.749171,2669.5,2669.0,0.06814459]
[1724116155268,3.74553,2669.9,2669.0,0.06814459]
[1724116155269,3.74574,2669.7,2669.0,0.06814459]
[1724116155482,3.0,2669.6,2669.0,0.06814459]
[1724116155893,3.0,2669.9,2669.1,0.55]
[1724116156098,3.0,2669.9,2669.2,0.06807593]
[1724116156303,3.74588,2669.6,2669.2,0.06807593]
[1724116156463,4.495035,2669.6,2669.2,0.06807593]
[1724116156663,4.495035,2669.6,2668.9,2.3033]
[1724116156942,4.495035,2669.6,2669.0,0.06812244]
[1724116157266,0.749155,2669.6,2669.0,0.06812244]
[1724116157688,3.74658,2669.1,2669.0,0.06812244]
[1724116157908,3.74701,2668.8,2667.9,2.4632]
[1724116158080,3.74706,2668.8,2667.9,2.4632]
[1724116158285,3.74737,2668.6,2667.9,2.4632]
[1724116158483,4.422157,2668.5,2667.9,2.4632]
[1724116158685,3.674737,2668.5,2667.9,2.4632]
[1724116159447,3.674737,2668.5,2667.4,2.3352]
[1724116159583,3.74785,2668.2,2667.4,2.3352]
[1724116159781,3.74785,2668.2,2666.6,4.042]
[1724116159782,3.74822,2668.0,2666.6,4.042]
[1724116160081,7.123102,2667.9,2666.7,2.3352]
[1724116160381,7.123102,2667.9,2666.6,4.042]
[1724116160382,3.0,2667.9,2666.8,2.41018586]
[1724116160610,3.0,2668.3,2666.8,2.3352]
[1724116161139,3.74792,2668.2,2666.8,2.3352]
[1724116161283,3.74813,2668.0,2666.9,0.78352]
[1724116161678,3.0,2667.9,2666.9,0.78352]
[1724116162037,7.422862,2668.1,2666.9,0.78352]
[1724116162038,3.74813,2668.0,2666.9,0.78352]
[1724116162185,3.0,2667.9,2666.9,0.78352]
[1724116163183,0.674792,2668.1,2666.9,0.78352]
[1724116163184,3.674792,2668.1,2666.9,0.78352]
[1724116163544,0.4422692,2668.0,2667.0,0.311872]
[1724116163681,4.1903992,2668.0,2667.1,0.55]
[1724116164043,3.0,2667.9,2666.8,2.3352]
[1724116164182,3.0,2667.9,2666.9,0.55]
[1724116164388,1.09386192,2667.8,2666.9,0.83852]
[1724116167120,3.0,2667.9,2667.2,2.3794]
[1724116167347,3.0,2668.7,2667.3,0.55]
[1724116167554,3.0,2668.7,2667.4,2.3794]
[1724116167751,3.0,2668.7,2667.5,0.55]
[1724116168077,0.52852,2668.7,2667.7,2.3459]
[1724116168366,0.52852,2668.7,2667.8,0.61997058]
[1724116168367,3.52852,2668.7,2667.8,0.61997058]
[1724116170771,2.3128,2669.1,2667.9,2.3264]
[1724116170987,8.67873178,2669.5,2668.0,2.8764]
[1724116170988,6.01997,2669.5,2668.0,2.8764]
[1724116171267,6.01997,2669.5,2668.1,2.3264]
[1724116171479,0.601997,2669.4,2668.3,2.3264]
[1724116171817,0.601997,2669.4,2668.4,0.61909059]
[1724116172221,7.348227,2669.4,2668.4,0.61909059]
[1724116172427,3.74633,2669.3,2668.4,0.61909059]
[1724116172615,3.7348327,2669.2,2668.4,0.61909059]
[1724116173971,3.0,2669.3,2668.4,0.61909059]
[1724116174117,3.0,2669.1,2668.4,0.61909059]
[1724116174317,3.0,2669.3,2668.4,0.61909059]
[1724116174519,4.348157,2669.4,2668.4,0.61909059]
[1724116174734,3.7348157,2669.3,2668.4,0.61909059]
[1724116174967,3.7348157,2669.3,2668.4,0.55]
[1724116175462,3.7348157,2669.3,2668.5,0.06891]
[1724116175835,0.601997,2669.4,2668.6,0.55]
[1724116176171,0.601997,2669.4,2668.7,0.068797]
[1724116176471,3.0,2669.5,2668.7,0.068797]
[1724116176762,6.7459,2669.6,2668.7,0.068797]
[1724116177321,3.0,2669.6,2668.8,2.9704]
[1724116177517,3.0,2669.7,2668.9,0.06863086]
[1724116177720,0.674566,2669.6,2668.8,2.9704]
[1724116177917,0.674566,2669.6,2668.9,0.06863086]
[1724116178517,6.13,2669.5,2668.9,0.06863086]
[1724116178828,3.0,2669.4,2668.4,2.4204]
[1724116179030,0.913,2669.3,2668.5,0.55]
[1724116179235,4.65932,2669.3,2668.5,0.61879922]
[1724116179416,3.74676,2669.0,2668.5,0.06879922]
[1724116179638,6.74687,2668.9,2668.5,0.06879922]
[1724116179836,0.674687,2668.8,2668.0,2.4788]
[1724116180152,3.674687,2668.8,2668.1,0.0689898]